bitfinex/quotes_BTCUSD_20250619
["timestamp","ask_amount","ask_price","bid_price","bid_amount"]
[1750353488562,5.3650799,104200.0,104190.0,0.224697]
[1750353489016,5.3650799,104200.0,104190.0,0.03274]
[1750353489442,5.3650799,104200.0,104190.0,0.06274]
[1750353490211,4.97538133,104200.0,104190.0,0.3405396]
[1750353490419,5.03533453,104200.0,104190.0,0.35973428]
[1750353490622,4.53728146,104200.0,104190.0,0.35973428]
[1750353491009,4.55647421,104200.0,104190.0,0.51673428]
[1750353491265,4.54687756,104200.0,104190.0,0.51673428]
[1750353491679,0.41237282,104200.0,104190.0,0.51673428]
[1750353492113,0.41237273,104200.0,104190.0,0.51673428]
[1750353492662,0.42196892,104200.0,104190.0,0.51673428]
[1750353492819,0.43156529,104200.0,104190.0,0.51673428]
[1750353493234,0.92961799,104200.0,104190.0,0.51673428]
[1750353493636,0.92002162,104200.0,104190.0,0.51673428]
[1750353493860,0.40277663,104200.0,104190.0,0.61201321]
[1750353494903,0.89982933,104200.0,104190.0,0.61201321]
[1750353495111,0.90842543,104200.0,104190.0,0.61301321]
[1750353495527,0.90842543,104200.0,104190.0,0.61401321]
[1750353495982,0.89882933,104200.0,104190.0,0.61401321]
[1750353497451,0.89882933,104200.0,104190.0,0.53776827]
[1750353497666,0.90842552,104200.0,104190.0,0.53776827]
[1750353497873,1.02288821,104200.0,104190.0,0.53776827]
[1750353498081,0.9180218,104200.0,104190.0,0.53776827]
[1750353498309,0.92761826,104200.0,104190.0,0.53776827]
[1750353498520,0.92761817,104200.0,104190.0,0.53776827]
[1750353498946,0.92761826,104200.0,104190.0,0.53776827]
[1750353499162,0.93721482,104200.0,104190.0,0.53776827]
[1750353499366,0.9180218,104200.0,104190.0,0.53776827]
[1750353499812,0.92761826,104200.0,104190.0,0.53776827]
[1750353500289,0.92761817,104200.0,104190.0,0.53776827]
[1750353501424,0.93721473,104200.0,104190.0,0.53776827]
[1750353501625,0.92761817,104200.0,104190.0,0.53776827]
[1750353501833,1.11955766,104200.0,104190.0,0.51857378]
[1750353502043,1.11955757,104200.0,104190.0,0.43285232]
[1750353502457,1.11955757,104200.0,104190.0,0.4424498]
[1750353502666,1.11955757,104200.0,104190.0,0.45204718]
[1750353504273,0.927619,104200.0,104190.0,0.46164438]
[1750353504732,0.93721583,104200.0,104190.0,0.46164438]
[1750353505306,0.77873469,104200.0,104190.0,0.46164438]
[1750353506408,0.76913832,104200.0,104190.0,0.45204718]
[1750353506625,0.75954176,104200.0,104190.0,0.45204718]
[1750353507281,0.77779101,104200.0,104190.0,0.45204718]
[1750353508751,0.58585244,104200.0,104190.0,0.46164447]
[1750353508960,0.77779101,104200.0,104190.0,0.46164392]
[1750353509593,0.77779101,104200.0,104190.0,0.45204672]
[1750353509799,0.77779101,104200.0,104190.0,0.44244943]
[1750353510014,0.76819427,104200.0,104190.0,0.2758926]
[1750353510237,4.87390944,104200.0,104190.0,0.03474]
[1750353510452,5.37196214,104200.0,104190.0,0.00214]
[1750353510660,4.90540944,104200.0,104190.0,0.00214]
[1750353511298,4.90540944,104200.0,104190.0,0.00014]
[1750353511514,4.90640944,104200.0,104190.0,0.00014]
[1750353512143,4.90740944,104200.0,104190.0,0.00014]
[1750353512565,4.40935674,104200.0,104190.0,0.00014]
[1750353512793,4.90740944,104200.0,104190.0,0.00014]
[1750353514296,4.87590944,104200.0,104190.0,0.00014]
[1750353516641,5.24690944,104200.0,104190.0,0.00014]
[1750353517064,5.40386944,104200.0,104190.0,0.00014]
[1750353518592,5.37286944,104200.0,104190.0,0.00014]
[1750353522465,5.99820107,104200.0,104190.0,0.00014]
[1750353522679,6.03020107,104200.0,104190.0,0.00014]
[1750353523809,5.50014837,104200.0,104190.0,0.00014]
[1750353524878,5.50014837,104200.0,104190.0,0.03214]
[1750353524879,5.46814837,104200.0,104190.0,0.03214]
[1750353525322,5.46814837,104200.0,104190.0,0.06334]
[1750353525752,5.46814837,104200.0,104190.0,0.03214]
[1750353528104,5.18474527,104200.0,104190.0,0.06234]
[1750353528315,5.382426,104200.0,104190.0,0.27349242]
[1750353528537,5.225466,104200.0,104190.0,0.26389485]
[1750353528892,5.225466,104200.0,104190.0,0.27349251]
[1750353529710,5.21586935,104200.0,104190.0,0.06234]
[1750353529958,5.21586935,104200.0,104190.0,0.26389485]
[1750353531105,5.20627252,104200.0,104190.0,0.26389485]
[1750353531545,5.20627252,104200.0,104190.0,0.2734926]
[1750353535704,5.20627252,104200.0,104190.0,0.26389485]
[1750353535925,5.20627252,104200.0,104190.0,0.07193785]
[1750353536135,5.20627252,104200.0,104190.0,0.06234]
[1750353544178,5.02340227,104200.0,104190.0,0.06234]
[1750353544644,5.02340227,104200.0,104190.0,0.254297]
[1750353544862,5.02340227,104200.0,104190.0,0.06234]
[1750353547671,4.52534957,104200.0,104190.0,0.254297]
[1750353547916,5.05483741,104200.0,104190.0,0.26389475]
[1750353548778,4.56638163,104200.0,104190.0,0.26389475]
[1750353549017,5.06443433,104200.0,104190.0,0.27349241]
[1750353549451,5.06443433,104200.0,104190.0,0.28308998]
[1750353550172,5.06443433,104200.0,104190.0,0.27349241]
[1750353550667,4.32412614,104200.0,104190.0,0.29268709]
[1750353550911,0.44294389,104200.0,104190.0,0.36893203]
[1750353551143,0.44294389,104200.0,104190.0,0.35933483]
[1750353551144,1.1425319,104200.0,104190.0,0.35933483]
[1750353551380,0.96019016,104200.0,104190.0,0.3785295]
[1750353551617,0.96019016,104200.0,104190.0,0.36893221]
[1750353551618,0.96019098,104200.0,104190.0,0.36893221]
[1750353551908,1.14253336,104200.0,104190.0,0.34973735]
[1750353552177,1.14253336,104200.0,104190.0,0.27349242]
[1750353553133,1.1329369,104200.0,104190.0,0.254297]
[1750353553370,1.12334016,104200.0,104190.0,0.26389485]
[1750353553871,5.06443433,104200.0,104190.0,0.00014]
[1750353554123,5.25325433,104200.0,104190.0,0.00014]
[1750353554354,5.37933326,104200.0,104190.0,0.00014]
[1750353554618,5.87738596,104200.0,104190.0,0.00014]
[1750353554848,5.34853326,104200.0,104190.0,0.00014]
[1750353559294,4.85048056,104200.0,104190.0,0.00014]
[1750353559503,5.34853326,104200.0,104190.0,0.00014]
[1750353560346,5.87678596,104200.0,104190.0,0.00014]
[1750353567630,6.10738596,104200.0,104190.0,0.00014]
[1750353567855,6.12192681,104200.0,104190.0,1e-08]
[1750353568067,4.56644323,104190.0,104180.0,6.001e-05]
[1750353568273,5.81474756,104190.0,104180.0,6.001e-05]
[1750353570001,5.81574756,104190.0,104180.0,6.001e-05]
[1750353570213,5.81674756,104190.0,104180.0,6.001e-05]
[1750353571506,5.78494756,104190.0,104180.0,6.001e-05]
[1750353576333,5.81564756,104190.0,104180.0,6.001e-05]
[1750353576551,4.6503177,104180.0,104170.0,0.00014]
[1750353576757,4.97593663,104180.0,104170.0,0.00014]
[1750353578070,4.97893663,104180.0,104170.0,0.00014]
[1750353579153,4.98093663,104180.0,104170.0,0.00014]
[1750353580953,4.94823663,104180.0,104170.0,0.00014]
[1750353581808,4.94823663,104180.0,104170.0,0.03324]
[1750353582027,4.94823663,104180.0,104170.0,0.06384]
[1750353583163,4.6553177,104180.0,104170.0,0.14008494]
[1750353583395,4.86255619,104180.0,104170.0,0.33207879]
[1750353583621,4.6960377,104180.0,104170.0,0.14008494]
[1750353583845,4.00600903,104180.0,104170.0,0.36087656]
[1750353584061,0.25531821,104180.0,104170.0,0.36087656]
[1750353584270,0.61451455,104180.0,104170.0,0.36087656]
[1750353584489,0.39531794,104180.0,104170.0,0.36087656]
[1750353584939,0.005,104180.0,104170.0,0.85892926]
[1750353585159,0.205,104180.0,104170.0,0.88767238]
[1750353585372,0.203,104180.0,104170.0,0.88767238]
[1750353585581,0.203,104180.0,104170.0,0.88867238]
[1750353585793,0.203,104180.0,104170.0,0.39061968]
[1750353586007,0.34,104180.0,104170.0,0.39061968]
[1750353586244,0.54,104180.0,104170.0,0.39261968]
[1750353586467,0.60014695,104180.0,104170.0,0.39261968]
[1750353588858,0.40974489,104180.0,104170.0,0.39261968]
[1750353589083,0.41934301,104180.0,104170.0,0.39261968]
[1750353589295,0.26974489,104180.0,104170.0,0.39261968]
[1750353589507,0.20959794,104180.0,104170.0,0.39261968]
[1750353589724,0.75952502,104190.0,104180.0,0.28477089]
[1750353589909,4.71021602,104190.0,104180.0,0.28477089]
[1750353591313,4.71021602,104190.0,104180.0,0.28477108]
[1750353591733,4.71021602,104190.0,104180.0,0.29436939]
[1750353591734,5.05021602,104190.0,104180.0,0.29436939]
[1750353593441,4.55216332,104190.0,104180.0,0.29436939]
[1750353593654,4.84865884,104190.0,104180.0,0.30396751]
[1750353594086,5.05021359,104190.0,104180.0,0.30396751]
[1750353594298,5.05981144,104190.0,104180.0,0.29436939]
[1750353594720,5.05021396,104190.0,104180.0,0.29436939]
[1750353594929,5.05021396,104190.0,104180.0,0.30396751]
[1750353595397,5.05021396,104190.0,104180.0,0.29436939]
[1750353595999,5.05021396,104190.0,104180.0,0.3039676]
[1750353597089,4.84865911,104190.0,104180.0,0.3039676]
[1750353597305,4.84865911,104190.0,104180.0,0.30396695]
[1750353597519,4.35060641,104190.0,104180.0,0.30396695]
[1750353597726,4.84865911,104190.0,104180.0,0.30396695]
[1750353597950,4.34100838,104190.0,104180.0,0.30396695]
[1750353598156,4.00100838,104190.0,104180.0,0.46084695]
[1750353598362,0.3999144,104190.0,104180.0,0.46084695]
[1750353598565,0.40951188,104190.0,104180.0,0.46084695]
[1750353599456,0.41910954,104190.0,104180.0,0.46084695]
[1750353599682,0.41910954,104190.0,104180.0,0.46384695]
[1750353600627,0.91716224,104190.0,104180.0,0.46384695]
[1750353601653,0.90756458,104190.0,104180.0,0.46384695]
[1750353601921,0.91716224,104190.0,104180.0,0.46384695]
[1750353602168,0.90756458,104190.0,104180.0,0.46384695]
[1750353602370,0.91716224,104190.0,104180.0,0.46384695]
[1750353603752,0.90756458,104190.0,104180.0,0.46384695]
[1750353604190,0.8979671,104190.0,104180.0,0.46384695]
[1750353604393,0.90756458,104190.0,104180.0,0.46384695]
[1750353604600,0.91716224,104190.0,104180.0,0.46384695]
[1750353605243,1.11871709,104190.0,104180.0,0.28777062]
[1750353605426,1.11871709,104190.0,104180.0,0.46384695]
[1750353606082,0.91716224,104190.0,104180.0,0.46384695]
[1750353609224,0.90756458,104190.0,104180.0,0.46384695]
[1750353609429,0.57712224,104190.0,104180.0,0.46384695]
[1750353610483,0.56752458,104190.0,104180.0,0.46384695]
[1750353611584,0.35929025,104190.0,104180.0,0.46384695]
[1750353612452,0.37848502,104190.0,104180.0,0.46384695]
[1750353612933,0.37848484,104190.0,104180.0,0.46384695]
[1750353613213,0.38808241,104190.0,104180.0,0.46384695]
[1750353613439,0.15723381,104190.0,104180.0,0.49259007]
[1750353613664,0.35723381,104190.0,104180.0,0.49259007]
[1750353614570,0.3668311,104190.0,104180.0,0.49259007]
[1750353615234,0.35723353,104190.0,104180.0,0.49259007]
[1750353616154,0.35723343,104190.0,104180.0,0.49259007]
[1750353617195,0.34763605,104190.0,104180.0,0.49259007]
[1750353617401,0.0598744,104190.0,104180.0,0.49259007]
[1750353617605,0.06947188,104190.0,104180.0,0.49259007]
[1750353617815,0.0598744,104190.0,104180.0,0.49259007]
[1750353618191,0.06947188,104190.0,104180.0,0.49259007]
[1750353619897,0.34856171,104190.0,104180.0,0.49259007]
[1750353620103,0.14856171,104190.0,104180.0,0.49259007]
[1750353621059,0.6466329,104190.0,104180.0,0.49259007]
[1750353621799,0.65623056,104190.0,104180.0,0.49259007]
[1750353622051,0.6466329,104190.0,104180.0,0.49259007]
[1750353622275,0.65623047,104190.0,104180.0,0.49259007]
[1750353623465,0.65623047,104190.0,104180.0,0.53086963]
[1750353623982,0.6466329,104190.0,104180.0,0.53086963]
[1750353624700,0.65623056,104190.0,104180.0,0.53086963]
[1750353624883,0.6466329,104190.0,104180.0,0.53086963]
[1750353627410,0.65623056,104190.0,104180.0,0.53086963]
[1750353627625,0.6466329,104190.0,104180.0,0.53086963]
[1750353629184,0.56754297,104190.0,104180.0,0.53086963]
[1750353631101,0.57714063,104190.0,104180.0,0.53086963]
[1750353631271,0.57714045,104190.0,104180.0,0.53086963]
[1750353631699,0.43019404,104190.0,104180.0,0.49259007]
[1750353631914,0.02879178,104190.0,104180.0,0.49259007]
[1750353632110,0.0598344,104190.0,104180.0,0.99066126]
[1750353632339,0.0598344,104190.0,104180.0,0.49259007]
[1750353632783,0.0598344,104190.0,104180.0,0.99066126]
[1750353633167,0.0598344,104190.0,104180.0,0.49259007]
[1750353633365,0.06943197,104190.0,104180.0,0.99066126]
[1750353633790,0.0598344,104190.0,104180.0,0.49259007]
[1750353633993,0.06943188,104190.0,104180.0,0.49267224]
[1750353634783,0.56750307,104190.0,104180.0,0.49267224]
[1750353636311,0.57710064,104190.0,104180.0,0.49267224]
[1750353636506,0.56750307,104190.0,104180.0,0.49267224]
[1750353636717,0.90750307,104190.0,104180.0,0.49267224]
[1750353636913,0.40943188,104190.0,104180.0,0.49267224]
[1750353637138,0.3998344,104190.0,104180.0,0.49267224]
[1750353638567,0.04064,104190.0,104180.0,0.49267224]
[1750353639043,0.05983459,104190.0,104180.0,0.49267224]
[1750353639254,0.0598344,104190.0,104180.0,0.49267224]
[1750353639675,0.06943178,104190.0,104180.0,0.49267224]
[1750353640038,0.07902944,104190.0,104180.0,0.49267224]
[1750353640226,0.07902935,104190.0,104180.0,0.49267224]
[1750353640687,0.06943178,104190.0,104180.0,0.49267224]
[1750353640903,0.57710054,104190.0,104180.0,0.49267224]
[1750353641114,0.5866982,104190.0,104180.0,0.49267224]
[1750353641540,0.57710054,104190.0,104180.0,0.49267224]
[1750353641968,0.56750297,104190.0,104180.0,0.49267224]
[1750353642182,0.57710054,104190.0,104180.0,0.49267224]
[1750353642408,0.56750297,104190.0,104180.0,0.49267224]
[1750353643146,0.75790559,104190.0,104180.0,0.49267224]
[1750353643359,0.55790559,104190.0,104180.0,0.49267224]
[1750353646491,0.56750307,104190.0,104180.0,0.49267224]
[1750353648221,0.57710073,104190.0,104180.0,0.49267224]
[1750353648659,0.56750307,104190.0,104180.0,0.5309518]
[1750353648877,0.56750307,104190.0,104180.0,0.32608027]
[1750353648878,0.75946062,104190.0,104180.0,0.32608027]
[1750353649109,0.75946062,104190.0,104180.0,0.03182529]
[1750353649110,5.60232579,104190.0,104180.0,0.03182529]
[1750353649327,5.60232579,104190.0,104180.0,0.003]
[1750353649546,5.62027532,104190.0,104180.0,0.003]
[1750353649984,5.62027532,104190.0,104180.0,0.001]
[1750353650420,5.60332579,104190.0,104180.0,0.001]
[1750353651289,4.49226509,104180.0,104170.0,0.40651765]
[1750353651501,5.48840747,104180.0,104170.0,0.40651765]
[1750353652572,5.49800568,104180.0,104170.0,0.37869236]
[1750353653005,4.99993449,104180.0,104170.0,0.37869236]
[1750353653649,4.99993449,104180.0,104170.0,0.37969236]
[1750353654137,4.99993449,104180.0,104170.0,0.41159236]
[1750353655404,4.99993449,104180.0,104170.0,0.42119159]
[1750353655639,5.00953298,104180.0,104170.0,0.43079072]
[1750353655856,4.81755756,104180.0,104170.0,0.43079007]
[1750353656080,4.79836013,104180.0,104170.0,0.5658603]
[1750353656301,0.40943428,104180.0,104170.0,1.06393149]
[1750353657219,0.41903286,104180.0,104170.0,1.06393149]
[1750353657446,5.53864569,104180.0,104170.0,0.03096529]
[1750353657676,5.60184569,104180.0,104170.0,0.00214]
[1750353658999,5.10407042,104180.0,104170.0,0.00114]
[1750353659217,5.26179042,104180.0,104170.0,0.00114]
[1750353659422,5.35706027,104180.0,104170.0,0.00014]
[1750353659625,5.26179042,104180.0,104170.0,0.00014]
[1750353659842,5.26279042,104180.0,104170.0,0.00014]
[1750353664212,5.35806935,104180.0,104170.0,0.00014]
[1750353670991,5.20134935,104180.0,104170.0,0.00014]
[1750353671209,5.38692335,104180.0,104170.0,0.00014]
[1750353674012,5.12636335,104180.0,104170.0,0.00014]
[1750353674251,5.29482935,104180.0,104170.0,0.03284]
[1750353674818,5.29482935,104180.0,104170.0,0.10908494]
[1750353675050,5.29482935,104180.0,104170.0,0.13978494]
[1750353677481,5.29482935,104180.0,104170.0,0.10908494]
[1750353680816,5.29482935,104180.0,104170.0,0.14098494]
[1750353686013,5.29478935,104180.0,104170.0,0.14098494]
[1750353688909,5.7930046,104180.0,104170.0,0.14098494]
[1750353689385,4.55402198,104180.0,104170.0,0.35217789]
[1750353689599,5.01175316,104180.0,104170.0,0.36177739]
[1750353689813,5.01175316,104180.0,104170.0,0.37137671]
[1750353689814,5.05231316,104180.0,104170.0,0.37137671]
[1750353690247,5.05231316,104180.0,104170.0,0.38097594]
[1750353690464,5.06191193,104180.0,104170.0,0.38097538]
[1750353691100,5.05231362,104180.0,104170.0,0.3521777]
[1750353691531,5.05231362,104180.0,104170.0,0.37137625]
[1750353691739,4.01244789,104180.0,104170.0,0.38097529]
[1750353691987,4.85073907,104180.0,104170.0,0.40972369]
[1750353692183,4.86993577,104180.0,104170.0,0.40972369]
[1750353692976,4.869837,104180.0,104170.0,0.40972369]
[1750353693335,4.86023833,104180.0,104170.0,0.40972369]
[1750353693962,4.86023833,104180.0,104170.0,0.38097529]
[1750353694154,4.86023833,104180.0,104170.0,0.40976906]
[1750353695545,4.85063975,104180.0,104170.0,0.40976906]
[1750353695800,0.38256,104180.0,104170.0,0.40976906]
[1750353696416,0.38256,104180.0,104170.0,0.50504799]
[1750353696621,0.58256,104180.0,104170.0,0.50504799]
[1750353696832,0.38256,104180.0,104170.0,0.50504799]
[1750353697877,0.39215812,104180.0,104170.0,0.42880305]
[1750353698804,0.40175643,104180.0,104170.0,0.42880305]
[1750353699208,0.40175633,104180.0,104170.0,0.42880305]
[1750353699478,0.41135473,104180.0,104170.0,0.42880305]
[1750353699687,0.40175633,104180.0,104170.0,0.42880305]
[1750353699887,0.39215812,104180.0,104170.0,0.42880305]
[1750353703685,0.40175643,104180.0,104170.0,0.42880305]
[1750353704099,0.39215812,104180.0,104170.0,0.42880305]
[1750353704521,0.40175643,104180.0,104170.0,0.42880305]
[1750353705767,0.41135492,104180.0,104170.0,0.42880305]
[1750353705978,0.4209535,104180.0,104170.0,0.42880305]
[1750353706768,0.91914591,104180.0,104170.0,0.42880305]
[1750353707039,0.90954733,104180.0,104170.0,0.42880305]
[1750353707614,0.91914591,104180.0,104170.0,0.42880305]
[1750353708790,0.91914591,104180.0,104170.0,0.42880314]
[1750353709011,0.92874458,104180.0,104170.0,0.41920364]
[1750353709229,1.10152385,104180.0,104170.0,0.45176731]
[1750353709455,1.09192527,104180.0,104170.0,0.45176731]
[1750353710503,1.09192527,104180.0,104170.0,0.46136681]
[1750353711973,1.09192527,104180.0,104170.0,0.43257304]
[1750353712626,1.09192527,104180.0,104170.0,0.47096622]
[1750353712843,1.09192527,104180.0,104170.0,0.44217245]
[1750353713049,1.09192527,104180.0,104170.0,0.47096622]
[1750353715028,1.59016946,104180.0,104170.0,0.47096622]
[1750353717140,1.58057079,104180.0,104170.0,0.46136681]
[1750353717766,1.58057079,104180.0,104170.0,0.46136691]
[1750353718834,1.59016928,104180.0,104170.0,0.47096641]
[1750353719038,1.59016928,104180.0,104170.0,0.48056582]
[1750353719453,1.39819386,104180.0,104170.0,0.49016449]
[1750353719659,1.40779188,104180.0,104170.0,0.49016449]
[1750353721062,1.3981933,104180.0,104170.0,0.49016449]
[1750353721887,0.899975,104180.0,104170.0,0.49016449]
[1750353722300,0.90957358,104180.0,104170.0,0.49016449]
[1750353722737,1.11114777,104180.0,104170.0,0.49016449]
[1750353722949,1.40779188,104180.0,104170.0,0.49016449]
[1750353726341,0.90957358,104180.0,104170.0,0.49016449]
[1750353727774,1.101549,104180.0,104170.0,0.49016449]
[1750353727979,0.90957358,104180.0,104170.0,0.49016449]
[1750353728358,1.00484343,104180.0,104170.0,0.49016449]
[1750353728565,0.90957358,104180.0,104170.0,0.49016449]
[1750353728972,0.39215821,104180.0,104170.0,0.49016449]
[1750353729167,0.90957285,104180.0,104170.0,0.49016449]
[1750353729372,0.91917134,104180.0,104170.0,0.49016449]
[1750353730348,0.92876992,104180.0,104170.0,0.49016449]
[1750353730525,1.12074534,104180.0,104170.0,0.49016449]
[1750353730725,1.12074607,104180.0,104170.0,0.49016449]
[1750353731556,0.91917198,104180.0,104170.0,0.49016449]
[1750353733785,0.89997445,104180.0,104170.0,0.49016449]
[1750353734228,0.90957285,104180.0,104170.0,0.49016449]
[1750353735470,0.91917143,104180.0,104170.0,0.49016449]
[1750353735619,1.11114685,104180.0,104170.0,0.48056545]
[1750353735836,1.12074562,104180.0,104170.0,0.49008421]
[1750353736034,1.61896392,104180.0,104170.0,0.49008421]
[1750353736240,1.61896392,104180.0,104170.0,0.47088566]
[1750353737002,1.61896392,104180.0,104170.0,0.4804847]
[1750353737880,0.77874562,104180.0,104170.0,0.4804847]
[1750353739571,0.57717143,104180.0,104170.0,0.4804847]
[1750353739783,0.57717134,104180.0,104170.0,0.4804847]
[1750353743741,0.58676992,104180.0,104170.0,0.45169093]
[1750353743937,0.58676992,104180.0,104170.0,0.48051825]
[1750353744137,0.58676992,104180.0,104170.0,0.45169093]
[1750353744347,0.66464282,104180.0,104170.0,0.45169093]
[1750353744993,0.66464282,104180.0,104170.0,0.48051778]
[1750353746434,0.85661897,104180.0,104170.0,0.48051778]
[1750353746850,0.66464355,104180.0,104170.0,0.48051778]
[1750353748549,0.58677065,104180.0,104170.0,0.48051778]
[1750353748718,0.57717198,104180.0,104170.0,0.48051778]
[1750353751655,0.55797491,104180.0,104170.0,0.48051778]
[1750353751832,0.5675734,104180.0,104170.0,0.48051778]
[1750353752046,0.57717198,104180.0,104170.0,0.48051778]
[1750353752714,0.65408509,104180.0,104170.0,0.48051778]
[1750353754534,0.49406693,104180.0,104170.0,0.48051778]
[1750353755579,0.42675222,104180.0,104170.0,0.48051778]
[1750353756601,0.77635043,104180.0,104170.0,0.48051778]
[1750353756807,0.75715336,104180.0,104170.0,0.48051778]
[1750353757011,0.76675194,104180.0,104170.0,0.48051778]
[1750353758042,0.89785491,104180.0,104170.0,0.48051778]
[1750353758253,0.90745349,104180.0,104170.0,0.48051778]
[1750353758991,0.89785491,104180.0,104170.0,0.48051778]
[1750353759390,0.9074534,104180.0,104170.0,0.48051778]
[1750353760251,0.91705198,104180.0,104170.0,0.48051778]
[1750353761041,0.91705198,104180.0,104170.0,0.45169093]
[1750353761365,0.91705198,104180.0,104170.0,0.48051797]
[1750353762012,1.1090274,104180.0,104170.0,0.48051797]
[1750353762350,1.11862617,104180.0,104170.0,0.48051797]
[1750353762995,0.91705198,104180.0,104170.0,0.48051797]
[1750353763849,0.72982617,104180.0,104170.0,0.48051797]
[1750353764459,0.56745377,104180.0,104170.0,0.48051797]
[1750353765484,0.57705198,104180.0,104170.0,0.48051797]
[1750353765849,0.77862607,104180.0,104170.0,0.48051797]
[1750353766054,0.77862663,104180.0,104170.0,0.44861797]
[1750353766910,1.27684493,104180.0,104170.0,0.25366089]
[1750353767137,5.20833904,104180.0,104170.0,0.3965999]
[1750353767920,5.20833904,104180.0,104170.0,0.38700049]
[1750353768532,5.20833904,104180.0,104170.0,0.39659999]
[1750353768934,5.20833904,104180.0,104170.0,0.4061994]
[1750353769336,5.20833904,104180.0,104170.0,0.39659999]
[1750353769532,5.19874046,104180.0,104170.0,0.38700058]
[1750353769972,5.19874046,104180.0,104170.0,0.39660018]
[1750353770393,5.19874046,104180.0,104170.0,0.40619968]
[1750353770592,4.70052216,104180.0,104170.0,0.446299]
[1750353771020,4.49894761,104180.0,104170.0,0.45589804]
[1750353771157,4.71012047,104180.0,104170.0,0.45589804]
[1750353771621,4.21190217,104180.0,104170.0,0.45589804]
[1750353771801,4.71012047,104180.0,104170.0,0.45589804]
[1750353772360,4.51814505,104180.0,104170.0,0.45589804]
[1750353772635,4.72931708,104180.0,104170.0,0.45589823]
[1750353772922,4.72931708,104180.0,104170.0,0.45589767]
[1750353773053,4.72931708,104180.0,104170.0,0.45589711]
[1750353773868,4.72931708,104180.0,104170.0,0.48809711]
[1750353774074,4.72931708,104180.0,104170.0,0.47849807]
[1750353774275,4.71971905,104180.0,104170.0,0.43669894]
[1750353774490,4.71012074,104180.0,104170.0,0.42709971]
[1750353774899,4.71012074,104180.0,104170.0,0.43669894]
[1750353775368,5.20833904,104180.0,104170.0,0.43669894]
[1750353776999,5.05012074,104180.0,104170.0,0.43669894]
[1750353777214,5.54833904,104180.0,104170.0,0.43669894]
[1750353782919,5.54833904,104180.0,104170.0,0.46949894]
[1750353784374,5.54833904,104180.0,104170.0,0.43669894]
[1750353784588,4.290691,104180.0,104170.0,0.47719798]
[1750353784788,4.79850742,104180.0,104170.0,0.47719798]
[1750353785196,4.79850742,104180.0,104170.0,0.51563379]
[1750353785403,4.7889093,104180.0,104170.0,0.51563379]
[1750353785612,4.79850733,104180.0,104170.0,0.51563379]
[1750353785813,4.30028903,104180.0,104170.0,0.51563379]
[1750353786015,4.79850733,104180.0,104170.0,0.51563379]
[1750353786850,4.290691,104180.0,104170.0,1.10913102]
[1750353787054,0.34959803,104180.0,104170.0,1.10913102]
[1750353787268,0.84781633,104180.0,104170.0,0.61091272]
[1750353788113,0.85741464,104180.0,104170.0,0.45447272]
[1750353788334,0.86701313,104180.0,104170.0,0.61087272]
[1750353788540,0.86701322,104180.0,104170.0,0.34959456]
[1750353788755,0.36879492,104180.0,104170.0,0.50599456]
[1750353789015,0.85741464,104180.0,104170.0,0.50599456]
[1750353789280,0.86701322,104180.0,104170.0,0.50599456]
[1750353789550,0.85741464,104180.0,104170.0,0.50599456]
[1750353789794,0.84781633,104180.0,104170.0,0.50599456]
[1750353790029,0.85741454,104180.0,104170.0,0.50599456]
[1750353790260,0.35919624,104180.0,104170.0,0.50599456]
[1750353790516,0.85741454,104180.0,104170.0,0.50599456]
[1750353791911,0.35919624,104180.0,104170.0,0.50599456]
[1750353792173,0.85741454,104180.0,104170.0,0.50599456]
[1750353792858,0.35919624,104180.0,104170.0,0.50599456]
[1750353793100,0.86701285,104180.0,104170.0,0.50599456]
[1750353793337,0.86701285,104180.0,104170.0,0.34959456]
[1750353793577,0.86701285,104180.0,104170.0,0.50599456]
[1750353795198,0.87661143,104180.0,104170.0,0.50599456]
[1750353795944,0.87661143,104180.0,104170.0,0.46755875]
[1750353796861,0.87661143,104180.0,104170.0,0.50599456]
[1750353797096,0.87661134,104180.0,104170.0,0.50599456]
[1750353797836,0.88620992,104180.0,104170.0,0.50599456]
[1750353798114,0.88620992,104180.0,104170.0,0.46755875]
[1750353800055,0.38799162,104180.0,104170.0,0.46755875]
[1750353800296,0.88620992,104180.0,104170.0,0.46755875]
[1750353800741,1.07818534,104180.0,104170.0,0.45795971]
[1750353800961,1.56680561,104180.0,104170.0,0.46755884]
[1750353801187,1.56680561,104180.0,104170.0,0.47715788]
[1750353801882,0.87661189,104180.0,104170.0,0.47715788]
[1750353803952,0.87661189,104180.0,104170.0,0.47711788]
[1750353805118,1.07818598,104180.0,104170.0,0.47711788]
[1750353807553,0.88621056,104180.0,104170.0,0.47711788]
[1750353810684,0.86701331,104180.0,104170.0,0.47711788]
[1750353810913,0.53661189,104180.0,104170.0,0.47711788]
[1750353811343,0.51741482,104180.0,104170.0,0.47711788]
[1750353811563,0.52701331,104180.0,104170.0,0.47711788]
[1750353811998,0.53661189,104180.0,104170.0,0.47711788]
[1750353812444,0.52701331,104180.0,104170.0,0.47711788]
[1750353812889,0.53661189,104180.0,104170.0,0.47711788]
[1750353813101,0.53661189,104180.0,104170.0,0.47811788]
[1750353813316,0.52701331,104180.0,104170.0,0.47811788]
[1750353813571,0.71741482,104180.0,104170.0,0.47911788]
[1750353813783,0.51741482,104180.0,104170.0,0.47911788]
[1750353813989,0.52701331,104180.0,104170.0,0.47911788]
[1750353815249,0.53661189,104180.0,104170.0,0.47911788]
[1750353817399,0.23839359,104180.0,104170.0,0.47911788]
[1750353817620,0.73661189,104180.0,104170.0,0.47911788]
[1750353817847,0.53661189,104180.0,104170.0,0.47911788]
[1750353818058,0.8054842,104180.0,104170.0,0.47911788]
[1750353818487,0.61350878,104180.0,104170.0,0.47911788]
[1750353820150,0.53661189,104180.0,104170.0,0.47911788]
[1750353820571,0.52701331,104180.0,104170.0,0.47911788]
[1750353823551,0.51741482,104180.0,104170.0,0.47911788]
[1750353823760,0.52701331,104180.0,104170.0,0.47911788]
[1750353824656,0.52701322,104180.0,104170.0,0.47911788]
[1750353825089,0.5366118,104180.0,104170.0,0.47911788]
[1750353826156,0.52701322,104180.0,104170.0,0.47911788]
[1750353827408,0.53661171,104180.0,104170.0,0.47911788]
[1750353827848,0.54621029,104180.0,104170.0,0.47911788]
[1750353829199,0.81604244,104180.0,104170.0,0.47911788]
[1750353829817,1.12228532,104180.0,104170.0,0.32275788]
[1750353830029,1.12228532,104180.0,104170.0,0.47907788]
[1750353830650,1.12228532,104180.0,104170.0,0.51751369]
[1750353830856,1.12228532,104180.0,104170.0,0.47907788]
[1750353831712,0.62406702,104180.0,104170.0,0.47907788]
[1750353832322,0.8160429,104180.0,104170.0,0.30355971]
[1750353832535,0.81604336,104180.0,104170.0,0.47907807]
[1750353832761,1.31426166,104180.0,104170.0,0.47907807]
[1750353833801,0.81604336,104180.0,104170.0,0.47907807]
[1750353834018,0.81604336,104180.0,104170.0,0.48867711]
[1750353834858,0.81604336,104180.0,104170.0,0.33235711]
[1750353835071,0.81604336,104180.0,104170.0,0.47907807]
[1750353835496,0.81604336,104180.0,104170.0,0.51751388]
[1750353835711,5.26745719,104180.0,104170.0,0.03096704]